bitfinex/quotes_BTCUSD_20250308
["timestamp","ask_amount","ask_price","bid_price","bid_amount"]
[1741475821267,0.799144,86583.0,86582.0,0.05969999]
[1741475821564,0.799144,86583.0,86582.0,0.0485]
[1741475821767,0.799144,86583.0,86582.0,0.04888664]
[1741475823494,1.099144,86583.0,86582.0,0.00038664]
[1741475824977,1.101144,86583.0,86582.0,0.00038664]
[1741475825137,0.454144,86583.0,86582.0,0.00038664]
[1741475827189,0.650158,86575.0,86574.0,0.0003398]
[1741475827420,0.650158,86575.0,86573.0,0.00011604]
[1741475827421,0.31155,86574.0,86573.0,0.00011604]
[1741475828663,0.31455,86574.0,86573.0,0.00011604]
[1741475829083,0.46055378,86575.0,86573.0,0.00011604]
[1741475829285,0.01455,86574.0,86573.0,0.00011604]
[1741475830688,0.138606,86577.0,86573.0,0.00011604]
[1741475830689,0.10917748,86577.0,86573.0,0.00011604]
[1741475830840,0.138608,86575.0,86573.0,0.00011604]
[1741475831053,0.01155,86574.0,86573.0,0.00011604]
[1741475832099,0.01555,86574.0,86573.0,0.00011604]
[1741475832294,0.01855,86574.0,86573.0,0.00011604]
[1741475835159,0.03309085,86574.0,86573.0,0.00011604]
[1741475835345,0.33309085,86574.0,86573.0,0.00011604]
[1741475836958,0.44321085,86574.0,86573.0,0.00011604]
[1741475837360,0.44317085,86574.0,86573.0,0.00011604]
[1741475837929,0.44017085,86574.0,86573.0,0.00011604]
[1741475838134,0.43617085,86574.0,86573.0,0.00011604]
[1741475838428,0.44217085,86574.0,86573.0,0.00111604]
[1741475838871,0.44717085,86574.0,86573.0,0.00111604]
[1741475839279,0.52255,86574.0,86573.0,0.00111604]
[1741475842854,0.52255,86574.0,86573.0,0.00047775]
[1741475846662,0.450165,86571.0,86570.0,0.0003398]
[1741475848346,0.454165,86571.0,86570.0,0.0003398]
[1741475850680,0.450165,86571.0,86570.0,0.0003398]
[1741475850924,0.454165,86571.0,86570.0,0.0003398]
[1741475851563,1.104165,86571.0,86570.0,0.0003398]
[1741475852722,0.654,86571.0,86570.0,0.0500398]
[1741475852923,0.665551,86571.0,86570.0,0.1306398]
[1741475853096,1.104165,86571.0,86570.0,0.1306398]
[1741475854391,1.100165,86571.0,86570.0,0.1306398]
[1741475855249,1.103165,86571.0,86570.0,0.1306398]
[1741475857680,1.100165,86571.0,86570.0,0.1306398]
[1741475857929,1.102165,86571.0,86570.0,0.1306398]
[1741475858932,0.952,86571.0,86570.0,0.14187008]
[1741475859309,0.7606183,86571.0,86570.0,0.14187008]
[1741475859505,0.7626183,86571.0,86570.0,0.14187008]
[1741475859712,0.7626183,86571.0,86570.0,0.15342108]
[1741475859939,0.7626183,86571.0,86570.0,0.14187008]
[1741475860347,0.313551,86571.0,86570.0,0.14187008]
[1741475860879,0.311551,86571.0,86570.0,0.14187008]
[1741475861091,0.312551,86571.0,86570.0,0.14187008]
[1741475861289,0.312551,86571.0,86570.0,0.1306398]
[1741475861884,0.312551,86571.0,86570.0,0.14186996]
[1741475863620,0.451165,86571.0,86570.0,0.14186996]
[1741475865157,0.451165,86571.0,86570.0,0.1306398]
[1741475865721,0.451165,86571.0,86570.0,0.14186892]
[1741475866945,0.451165,86571.0,86570.0,0.1306398]
[1741475876129,0.451165,86571.0,86570.0,0.14186892]
[1741475876829,0.451165,86571.0,86570.0,0.1306398]
[1741475877383,0.4513349,86571.0,86570.0,0.1306398]
[1741475884388,0.4513349,86571.0,86570.0,0.0003398]
[1741475891418,0.1513349,86571.0,86570.0,0.0003398]
[1741475892834,0.1513349,86571.0,86550.0,0.005]
[1741475892835,0.86062475,86571.0,86550.0,0.005]
[1741475893013,0.011553,86551.0,86550.0,0.005]
[1741475893213,0.138639,86556.0,86551.0,0.0775]
[1741475893562,0.138633,86560.0,86553.0,0.138643]
[1741475893715,0.150187,86558.0,86553.0,0.0455]
[1741475894080,0.150192,86556.0,86554.0,0.01126551]
[1741475894256,0.150192,86556.0,86554.0,0.01026551]
[1741475895612,0.011553,86555.0,86554.0,0.01026551]
[1741475897044,0.011553,86555.0,86554.0,0.01426551]
[1741475898264,0.011553,86555.0,86554.0,0.12390551]
[1741475898696,0.011553,86555.0,86554.0,0.12590551]
[1741475899021,0.011553,86555.0,86554.0,0.11990551]
[1741475899150,0.011553,86555.0,86554.0,0.01026551]
[1741475899360,0.011553,86555.0,86554.0,0.12090551]
[1741475899587,0.311553,86555.0,86554.0,0.001]
[1741475899931,0.311553,86555.0,86554.0,0.01136418]
[1741475900144,0.311553,86555.0,86554.0,0.00017]
[1741475900346,0.311893,86555.0,86554.0,0.00017]
[1741475900494,0.311893,86555.0,86554.0,0.00117]
[1741475904240,0.311893,86555.0,86539.0,0.1098]
[1741475904241,0.3,86553.0,86539.0,0.1098]
[1741475904466,0.59748085,86555.0,86531.0,0.0004]
[1741475904467,0.150233,86532.0,86531.0,0.0004]
[1741475904670,0.150233,86532.0,86531.0,0.1102]
[1741475905023,0.150233,86532.0,86531.0,0.12144847]
[1741475905914,0.17171108,86532.0,86531.0,0.12144847]
[1741475906108,0.17171108,86532.0,86531.0,0.12644847]
[1741475907335,0.17171108,86532.0,86531.0,0.01664847]
[1741475907508,0.17171108,86532.0,86531.0,0.12632847]
[1741475908897,0.17171108,86532.0,86531.0,0.12132847]
[1741475909097,0.150236,86530.0,86529.0,0.02587047]
[1741475909441,0.150236,86530.0,86529.0,0.02598653]
[1741475912487,0.150236,86530.0,86529.0,0.02615653]
[1741475916208,0.138675,86533.0,86532.0,2.20599692]
[1741475916393,0.150231,86533.0,86532.0,2.20599692]
[1741475916792,0.150231,86533.0,86532.0,2.21644155]
[1741475917549,0.011556,86533.0,86532.0,2.21644155]
[1741475920494,0.138675,86534.0,86532.0,2.21644155]
[1741475920694,0.150231,86534.0,86532.0,2.21644155]
[1741475921390,0.17079485,86534.0,86532.0,2.21644155]
[1741475921594,0.02056385,86534.0,86532.0,2.21644155]
[1741475921851,0.311556,86535.0,86532.0,2.21644155]
[1741475922088,0.011556,86534.0,86532.0,2.21644155]
[1741475924190,0.03271474,86534.0,86532.0,2.21644155]
[1741475925126,0.02115874,86534.0,86532.0,2.21644155]
[1741475925325,0.02115874,86534.0,86533.0,0.0776]
[1741475925679,0.150231,86533.0,86532.0,2.20599692]
[1741475925930,0.011556,86533.0,86532.0,2.20599692]
[1741475926530,0.150231,86533.0,86532.0,2.20599692]
[1741475929234,0.02115874,86534.0,86532.0,2.20599692]
[1741475929623,0.02115874,86534.0,86533.0,0.011556]
[1741475930257,0.138668,86538.0,86533.0,0.011556]
[1741475930466,0.138668,86538.0,86534.0,0.00030759]
[1741475930924,0.150223,86538.0,86534.0,0.00030759]
[1741475931406,0.150223,86538.0,86535.0,0.01043766]
[1741475932025,0.03280238,86539.0,86534.0,0.150229]
[1741475932253,0.02124738,86539.0,86536.0,0.14910535]
[1741475932449,0.02124738,86539.0,86535.0,0.02199366]
[1741475932649,0.311555,86541.0,86536.0,0.01043535]
[1741475932880,0.32070182,86539.0,86536.0,0.01043535]
[1741475933084,0.3,86539.0,86534.0,0.150229]
[1741475933403,0.29969378,86539.0,86535.0,0.01043766]
[1741475933850,0.31124878,86539.0,86535.0,0.01043766]
[1741475934027,0.3322705,86539.0,86535.0,0.01043766]
[1741475937669,0.3326105,86539.0,86535.0,0.01043766]
[1741475938684,0.02136172,86539.0,86536.0,0.13867]
[1741475938891,0.16002772,86539.0,86537.0,0.01067228]
[1741475939101,0.17158272,86539.0,86537.0,0.01043304]
[1741475939499,0.17158272,86539.0,86535.0,0.00026379]
[1741475939704,0.03291672,86539.0,86538.0,0.01043073]
[1741475939914,0.29712875,86541.0,86534.0,0.150229]
[1741475940119,0.011555,86540.0,86538.0,0.01043073]
[1741475940320,0.150213,86544.0,86537.0,0.011555]
[1741475940544,0.011554,86543.0,86539.0,0.01042842]
[1741475940772,0.011554,86543.0,86538.0,0.01043073]
[1741475940944,0.011554,86543.0,86540.0,0.0104261]
[1741475941304,0.011554,86543.0,86539.0,0.01042842]
[1741475941501,0.03282991,86543.0,86541.0,0.01042379]
[1741475941766,0.011554,86548.0,86540.0,0.0104261]
[1741475941929,0.011554,86548.0,86538.0,0.150221]
[1741475941930,0.138657,86544.0,86542.0,0.01042148]
[1741475942167,0.011554,86544.0,86541.0,0.01042379]
[1741475942371,0.011554,86544.0,86543.0,0.01041917]
[1741475942565,0.150211,86544.0,86542.0,0.01042148]
[1741475942766,0.150211,86544.0,86543.0,0.01041917]
[1741475942953,0.150211,86544.0,86538.0,0.150221]
[1741475943276,0.3,86545.0,86540.0,0.138664]
[1741475943673,0.3,86545.0,86541.0,0.01042379]
[1741475943875,0.3,86545.0,86541.0,0.02197879]
[1741475945139,0.438657,86545.0,86541.0,0.01042379]
[1741475945915,0.3,86545.0,86541.0,0.01042379]
[1741475946121,0.011554,86547.0,86542.0,0.150215]
[1741475946558,0.3,86545.0,86543.0,0.01041917]
[1741475946958,0.3,86545.0,86542.0,0.150215]
[1741475947131,0.3,86545.0,86544.0,0.01041685]
[1741475947333,0.3,86545.0,86543.0,0.01041917]
[1741475947655,0.3,86546.0,86544.0,0.01041685]
[1741475947854,0.3,86546.0,86542.0,0.150215]
[1741475948033,0.3,86546.0,86543.0,0.01041917]
[1741475948233,0.138649,86549.0,86544.0,0.150211]
[1741475948432,0.3,86548.0,86544.0,0.150211]
[1741475948660,0.3,86548.0,86545.0,0.01041454]
[1741475949465,0.3,86548.0,86545.0,0.02196854]
[1741475949779,0.3,86549.0,86545.0,0.02196854]
[1741475950190,0.3,86549.0,86545.0,0.01041454]
[1741475950567,0.10397682,86552.0,86551.0,0.150199]
[1741475950745,0.40397682,86552.0,86551.0,0.150199]
[1741475950956,0.40397682,86552.0,86551.0,0.01040005]
[1741475951156,0.3,86552.0,86551.0,0.01040005]
[1741475951700,0.3,86552.0,86549.0,0.150203]
[1741475951840,0.3,86552.0,86550.0,0.01040236]
[1741475952247,0.32055064,86552.0,86550.0,0.01040236]
[1741475952876,0.32055064,86552.0,86547.0,0.011554]
[1741475953087,0.32055064,86552.0,86548.0,0.01040699]
[1741475954070,0.32055064,86552.0,86549.0,0.138649]
[1741475954554,0.32055064,86552.0,86550.0,0.01040236]
[1741475954952,0.32055064,86552.0,86548.0,0.011554]
[1741475955156,0.32055064,86552.0,86551.0,0.01040005]
[1741475955477,0.32055064,86552.0,86548.0,0.150204]
[1741475955614,0.32055064,86552.0,86551.0,0.01040005]
[1741475955822,0.150199,86551.0,86546.0,0.277308]
[1741475956135,0.32055064,86552.0,86547.0,0.011554]
[1741475956355,0.32055064,86552.0,86548.0,0.150205]
[1741475958276,0.32055064,86552.0,86549.0,0.011554]
[1741475958507,0.32055064,86552.0,86550.0,0.150202]
[1741475960695,0.32055064,86552.0,86549.0,0.011554]
[1741475961043,0.32055064,86552.0,86548.0,0.011554]
[1741475961397,0.32055064,86552.0,86549.0,0.01040362]
[1741475963019,0.32089064,86552.0,86549.0,0.01040362]
[1741475963992,0.45953564,86552.0,86549.0,0.01040362]
[1741475964231,0.32089064,86552.0,86549.0,0.01040362]
[1741475964413,0.32089064,86552.0,86548.0,0.150205]
[1741475964650,0.32089064,86552.0,86550.0,0.01040102]
[1741475964858,0.32089064,86552.0,86549.0,0.01040333]
[1741475965080,0.32089064,86552.0,86551.0,0.01039871]
[1741475965278,0.32089064,86552.0,86548.0,0.150205]
[1741475965279,0.32089064,86552.0,86550.0,0.01040102]
[1741475965657,0.32089064,86552.0,86548.0,0.150205]
[1741475965860,0.32089064,86552.0,86551.0,0.01039869]
[1741475966060,0.32089064,86552.0,86549.0,0.011554]
[1741475966216,0.32089064,86552.0,86551.0,0.01039869]
[1741475967906,0.32089064,86552.0,86551.0,0.02195169]
[1741475970850,0.32089064,86552.0,86551.0,0.01039869]
[1741475971051,0.32089064,86552.0,86551.0,1.01039869]
[1741475972071,0.32089064,86552.0,86551.0,1.02195169]
[1741475975956,0.02089064,86552.0,86551.0,1.02195169]
[1741475976176,0.00034,86552.0,86551.0,1.02195169]
[1741475991777,0.011552,86562.0,86555.0,0.011553]
[1741475992014,0.011552,86561.0,86557.0,0.00036389]
[1741475992184,0.011552,86563.0,86558.0,0.011552]
[1741475992334,0.03729723,86563.0,86559.0,0.00036389]
[1741475992530,0.011552,86563.0,86560.0,0.01037726]
[1741475993154,0.40397682,86565.0,86560.0,0.01037726]
[1741475993155,0.40397682,86565.0,86561.0,0.00038732]
[1741475993387,0.40409275,86565.0,86564.0,0.150177]
[1741475993603,0.43029974,86565.0,86562.0,0.138628]
[1741475993811,0.43029974,86565.0,86564.0,0.010368]
[1741475993989,0.43029974,86565.0,86563.0,0.01037031]
[1741475994310,0.43029974,86565.0,86564.0,0.010368]
[1741475994447,0.43029974,86565.0,86564.0,0.160545]
[1741475994653,0.43029974,86565.0,86564.0,0.150177]
[1741475994882,0.43029974,86565.0,86564.0,0.160545]
[1741475996748,0.32632292,86565.0,86564.0,0.160545]
[1741475997096,0.02632292,86565.0,86564.0,0.010368]
[1741475997303,0.02632292,86565.0,86562.0,0.15018]
[1741475997504,0.02632292,86565.0,86563.0,0.01036947]
[1741475998303,0.02666272,86565.0,86563.0,0.01036947]
[1741475999663,0.02666272,86565.0,86560.0,0.011552]
[1741475999865,0.02666272,86565.0,86564.0,0.01036716]
[1741476000082,0.02666272,86565.0,86561.0,0.150182]
[1741476000244,0.02666272,86565.0,86564.0,0.01036716]
[1741476000518,0.02666272,86565.0,86564.0,0.011552]
[1741476000719,0.02666272,86565.0,86564.0,0.02191916]
[1741476002365,0.00045573,86565.0,86564.0,0.02191916]
[1741476007764,0.00045573,86565.0,86564.0,0.02307419]
[1741476012443,0.00045573,86565.0,86564.0,0.14907419]
[1741476013052,0.00045573,86565.0,86564.0,0.14907415]
[1741476014390,0.01858189,86565.0,86564.0,0.14907415]
[1741476014590,0.01858189,86565.0,86564.0,0.14791916]
[1741476015799,0.01858189,86565.0,86564.0,0.14907412]
[1741476016032,0.00045573,86565.0,86564.0,0.14907412]
[1741476016204,0.00045573,86565.0,86564.0,0.73101497]
[1741476016567,7.3e-07,86565.0,86564.0,0.72986001]
[1741476016762,7.3e-07,86565.0,86564.0,0.73032114]
[1741476018927,0.01812503,86565.0,86564.0,0.73032114]
[1741476022208,0.01812503,86565.0,86564.0,0.73066094]
[1741476027514,0.0001699,86571.0,86564.0,0.73066094]
[1741476027515,9.3e-07,86571.0,86570.0,0.175167]
[1741476027718,8.3e-07,86573.0,86572.0,0.31620385]
[1741476027933,8.568e-05,86573.0,86572.0,0.31620385]
[1741476028139,8.568e-05,86573.0,86572.0,0.32654842]
[1741476028698,6.8e-07,86573.0,86572.0,0.32654842]
[1741476030995,6.3e-07,86573.0,86572.0,0.32654842]
[1741476031229,0.0001699,86577.0,86576.0,0.175156]
[1741476031463,9e-07,86577.0,86576.0,1.15975144]
[1741476031736,9e-07,86577.0,86576.0,1.16893218]
[1741476031932,3.4e-07,86577.0,86576.0,1.16893218]
[1741476032165,0.00017,86610.0,86596.0,0.150121]
[1741476032459,0.00055649,86597.0,86596.0,0.27046321]
[1741476036047,0.01867541,86597.0,86596.0,0.81286321]
[1741476036474,0.01867541,86597.0,86596.0,0.8453065]
[1741476037545,0.3,86626.0,86619.0,0.150081]
[1741476037744,0.3,86626.0,86620.0,0.11084]
[1741476037929,0.30011164,86626.0,86620.0,0.12121635]
[1741476038100,0.01811731,86625.0,86623.0,0.011544]
[1741476038307,0.01811731,86625.0,86622.0,0.011544]
[1741476038512,0.03289578,86626.0,86623.0,0.01037088]
[1741476038936,0.01811783,86625.0,86623.0,0.01037088]
[1741476039138,0.01811783,86625.0,86624.0,0.011544]
[1741476039340,0.01811783,86625.0,86624.0,0.02191306]
[1741476040449,0.09561783,86625.0,86624.0,0.02191306]
[1741476040853,0.09561783,86625.0,86624.0,0.01036906]
[1741476041175,0.09561783,86625.0,86620.0,0.260919]
[1741476041376,0.09561783,86625.0,86624.0,0.01036906]
[1741476041577,0.09561783,86625.0,86620.0,0.260919]
[1741476041785,0.09561783,86625.0,86624.0,0.01036906]
[1741476042108,0.09561783,86625.0,86620.0,0.260919]
[1741476042312,0.09561783,86625.0,86624.0,0.01036906]
[1741476042466,0.23414583,86625.0,86620.0,0.122384]
[1741476042673,0.216028,86625.0,86624.0,0.01036906]
[1741476042879,0.216028,86625.0,86620.0,0.122384]
[1741476043081,0.227572,86625.0,86624.0,0.01036906]
[1741476043268,0.227572,86625.0,86620.0,0.122384]
[1741476043466,0.227572,86625.0,86624.0,0.01036906]
[1741476043667,0.227572,86625.0,86620.0,0.122384]
[1741476044237,0.011544,86624.0,86621.0,0.01037453]
[1741476046580,0.02966221,86624.0,86621.0,0.01037453]
[1741476047344,0.16819321,86624.0,86621.0,0.01037453]
[1741476047569,0.150076,86622.0,86621.0,0.01037453]
[1741476047931,0.011544,86623.0,86621.0,0.01037453]
[1741476048739,0.150076,86623.0,86621.0,0.01037453]
[1741476049015,0.011544,86623.0,86621.0,0.01037453]
[1741476051337,0.150076,86622.0,86621.0,0.01037453]
[1741476052720,0.011544,86622.0,86621.0,0.01037453]
[1741476053257,0.150076,86622.0,86621.0,0.01037453]
[1741476053463,0.232676,86622.0,86621.0,0.01037453]
[1741476053664,0.232693,86612.0,86611.0,0.11108]
[1741476054056,0.232693,86612.0,86611.0,0.12147276]
[1741476054273,0.10071946,86612.0,86611.0,0.12147276]
[1741476054481,0.01811946,86612.0,86611.0,0.12147276]
[1741476054879,0.01811946,86612.0,86611.0,0.13301776]
[1741476056262,0.01811946,86612.0,86611.0,0.27156776]
[1741476057522,0.01811946,86612.0,86611.0,0.12147276]
[1741476057965,0.01811946,86612.0,86611.0,0.27156776]
[1741476059548,0.01811946,86612.0,86611.0,0.27190716]
[1741476059749,0.0001698,86625.0,86624.0,0.150073]
[1741476059901,0.0001698,86625.0,86624.0,0.27144229]
[1741476062672,0.01828583,86625.0,86624.0,0.27144229]
[1741476063841,0.0001698,86625.0,86624.0,0.27144229]
[1741476067178,0.0001698,86625.0,86624.0,0.39694229]
[1741476069156,0.0001698,86625.0,86624.0,0.31644229]
[1741476069785,0.01828526,86625.0,86624.0,0.31644229]
[1741476073119,0.01828526,86625.0,86624.0,0.31678169]
[1741476079617,0.01828526,86625.0,86624.0,0.39788169]
[1741476108240,0.01828526,86625.0,86624.0,0.31678169]
[1741476110388,0.01828526,86625.0,86624.0,0.39448169]
[1741476111121,0.0001698,86625.0,86624.0,0.39448169]
[1741476114100,0.01828475,86625.0,86624.0,0.39448169]
[1741476119731,0.01828475,86625.0,86624.0,0.31678169]
[1741476121503,0.3,86642.0,86637.0,0.138508]
[1741476121732,0.02903596,86641.0,86638.0,0.10956]
[1741476121938,0.3,86642.0,86638.0,0.11990247]
[1741476122356,0.150047,86640.0,86638.0,0.11990247]
[1741476123029,0.011542,86639.0,86638.0,0.11990247]
[1741476123532,0.138505,86640.0,86638.0,0.11990247]
[1741476123765,0.011542,86639.0,86638.0,0.11990247]
[1741476123946,0.011542,86639.0,86638.0,0.10956]
[1741476124428,0.011542,86639.0,86638.0,0.11990247]
[1741476124659,0.02965661,86639.0,86638.0,0.11990247]
[1741476126045,0.01811461,86639.0,86638.0,0.11990247]
[1741476127780,0.02965661,86639.0,86638.0,0.11990247]
[1741476128693,0.01811461,86639.0,86638.0,0.11990247]
[1741476129335,0.01811461,86639.0,86638.0,0.25840947]
[1741476129520,0.01811461,86639.0,86638.0,0.11990247]
[1741476131627,0.01811461,86639.0,86638.0,0.12024227]
[1741476133110,0.02833209,86641.0,86640.0,0.150046]
[1741476133519,0.02833209,86641.0,86640.0,0.02188083]
[1741476136523,0.02833209,86641.0,86640.0,0.00376649]
[1741476136782,0.02833209,86641.0,86638.0,0.2599488]
[1741476137026,0.02833209,86641.0,86640.0,0.0215157]
[1741476137260,0.02833209,86641.0,86640.0,0.011542]
[1741476137512,0.04644649,86641.0,86640.0,0.0215157]
[1741476137985,0.04644649,86641.0,86640.0,0.0099737]
[1741476138415,0.04644649,86641.0,86639.0,0.011542]
[1741476138686,0.04644649,86641.0,86640.0,0.0099737]
[1741476140729,0.04644649,86641.0,86638.0,0.2599488]
[1741476140926,0.48494849,86641.0,86640.0,0.0099737]
[1741476141200,0.011542,86640.0,86639.0,0.00997552]
[1741476141557,0.150047,86640.0,86639.0,0.00997552]
[1741476143629,0.011542,86639.0,86638.0,0.1098998]
[1741476144015,0.011542,86639.0,86638.0,0.11987714]
[1741476144371,0.011542,86640.0,86638.0,0.11987714]
[1741476144783,0.150047,86639.0,86638.0,0.11987714]
[1741476147167,0.150047,86639.0,86638.0,0.1098998]
[1741476150587,0.150047,86639.0,86638.0,0.11987714]
[1741476155216,0.150047,86639.0,86638.0,0.01031714]
[1741476155588,0.150047,86639.0,86638.0,0.0003398]
[1741476155795,0.150047,86639.0,86638.0,0.01031703]
[1741476155991,0.150047,86639.0,86638.0,0.0003398]
[1741476156212,0.150047,86639.0,86638.0,0.01031703]
[1741476167927,0.16816199,86639.0,86638.0,0.01031703]
[1741476171106,0.46816199,86639.0,86638.0,0.01031703]
[1741476171546,0.46816199,86639.0,86638.0,0.0003398]
[1741476172203,0.011544,86625.0,86624.0,0.0003394]
[1741476172417,0.450072,86625.0,86624.0,0.0003394]
[1741476172621,0.450072,86625.0,86624.0,0.0103422]
[1741476172826,0.450072,86625.0,86624.0,0.0003394]
[1741476173467,0.46461285,86625.0,86624.0,0.0003394]
[1741476176093,0.53143125,86625.0,86624.0,0.0003394]
[1741476176738,0.53143125,86625.0,86611.0,0.0003394]
[1741476176739,0.450093,86612.0,86611.0,0.0003394]
[1741476176949,0.450093,86612.0,86611.0,0.00045104]
[1741476178851,0.4682134,86612.0,86611.0,0.00045104]
[1741476182899,0.150105,86606.0,86599.0,0.011547]
[1741476183123,0.150107,86605.0,86600.0,0.01004883]
[1741476183346,0.011546,86604.0,86600.0,0.01004883]
[1741476183547,0.150109,86603.0,86600.0,0.01004883]
[1741476183958,0.150109,86603.0,86598.0,0.13244779]
[1741476184180,0.150109,86603.0,86601.0,0.01004701]
[1741476184388,0.138566,86601.0,86597.0,0.10956]
[1741476184627,0.011547,86601.0,86597.0,0.10956]
[1741476184831,0.150119,86597.0,86596.0,0.0767]
[1741476185034,0.150125,86594.0,86593.0,0.0486]
[1741476185872,0.150141,86585.0,86584.0,0.0815]
[1741476186075,0.011549,86585.0,86584.0,0.1096]
[1741476186461,0.011549,86585.0,86584.0,0.11967804]
[1741476187291,0.02967347,86585.0,86584.0,0.12006463]
[1741476189449,0.01812447,86585.0,86584.0,0.12006463]
[1741476191037,0.01812447,86585.0,86584.0,0.02201363]
[1741476191241,0.01812447,86585.0,86584.0,0.15101363]
[1741476193813,0.01812447,86585.0,86584.0,0.15135363]
[1741476199835,0.01812447,86585.0,86584.0,0.13980463]
[1741476200875,0.02967347,86585.0,86584.0,0.01080463]
[1741476201043,0.01812447,86585.0,86584.0,0.00072659]
[1741476201467,0.01812447,86585.0,86584.0,0.0114437]
[1741476201628,0.01812447,86585.0,86584.0,0.00072659]
[1741476201825,0.01812447,86585.0,86584.0,0.01297476]
[1741476202087,0.01812447,86585.0,86584.0,0.22906859]
[1741476202244,0.01812447,86585.0,86584.0,0.24131676]
[1741476202769,0.01812447,86585.0,86584.0,0.28821676]
[1741476218914,0.3,86597.0,86584.0,0.28821676]
[1741476219112,0.3,86597.0,86595.0,0.150123]
[1741476219531,0.3,86597.0,86596.0,0.01069252]
[1741476219680,0.3,86597.0,86596.0,0.02223952]
[1741476220947,0.3,86597.0,86596.0,0.01069252]
[1741476221742,0.31812284,86597.0,86596.0,0.01069252]
[1741476222436,0.01812284,86597.0,86596.0,0.01069252]
[1741476224167,0.15669484,86597.0,86596.0,0.01069252]
[1741476224958,0.011547,86598.0,86596.0,0.01145627]
[1741476226116,0.00135831,86600.0,86596.0,0.01145627]
[1741476226324,0.03518345,86601.0,86596.0,0.01145627]
[1741476226741,0.13857,86599.0,86596.0,0.01145627]
[1741476226928,0.011547,86598.0,86596.0,0.01145627]
[1741476227683,0.150117,86599.0,86596.0,0.01145627]
[1741476227895,0.011547,86599.0,86596.0,0.01145627]
[1741476228096,0.02966988,86599.0,86596.0,0.01145627]
[1741476231524,0.01829288,86599.0,86596.0,0.01145627]
[1741476234362,0.01829288,86599.0,86597.0,0.150119]
[1741476234565,0.01829288,86599.0,86598.0,0.138047]
[1741476234782,0.00017,86599.0,86598.0,0.13850813]
[1741476234990,0.00017,86599.0,86598.0,0.1499596]
[1741476237430,0.00017,86599.0,86598.0,0.14949847]
[1741476238892,0.01829097,86599.0,86598.0,0.1499596]
[1741476239024,0.01829097,86599.0,86598.0,0.14949847]
[1741476240098,0.01829097,86599.0,86598.0,0.1499596]
[1741476240510,0.01829097,86599.0,86598.0,0.14949847]
[1741476240721,0.01829097,86599.0,86598.0,0.1499596]
[1741476240918,0.01829097,86599.0,86598.0,0.14949847]
[1741476242882,0.01829097,86599.0,86598.0,0.1499596]
[1741476243091,0.01829097,86599.0,86598.0,0.14949847]
[1741476243293,0.01829097,86599.0,86598.0,0.1499596]
[1741476244725,0.01829097,86599.0,86598.0,0.14949847]
[1741476254697,0.01829097,86599.0,86598.0,0.14983847]
[1741476258259,0.01829097,86599.0,86598.0,0.15007948]
[1741476258491,0.01829097,86599.0,86598.0,0.14983847]
[1741476271551,0.04229592,86612.0,86598.0,0.14983847]
[1741476271552,0.04536272,86612.0,86606.0,0.150103]
[1741476271694,0.04536272,86612.0,86607.0,0.10952]
[1741476271894,0.04536272,86612.0,86607.0,0.12094873]
[1741476272892,0.05690772,86612.0,86607.0,0.12094873]
[1741476273708,0.08383133,86612.0,86607.0,0.12094873]
[1741476274537,0.03846861,86612.0,86607.0,0.13249473]
[1741476274740,0.17701661,86612.0,86607.0,0.12094873]
[1741476274949,0.01811968,86611.0,86607.0,0.12094873]
[1741476275164,0.02966468,86611.0,86607.0,0.12094873]
[1741476275985,0.17701661,86612.0,86608.0,0.138555]
[1741476276191,0.17701661,86612.0,86609.0,0.01142404]
[1741476277154,0.138552,86610.0,86609.0,0.01142404]
[1741476277359,0.011545,86611.0,86607.0,0.10952]
[1741476277544,0.011545,86611.0,86608.0,0.01142638]
[1741476277976,0.17701661,86612.0,86608.0,0.01142638]
[1741476278185,0.17718651,86612.0,86608.0,0.01142638]
[1741476278831,0.19530612,86612.0,86608.0,0.01142638]
[1741476286159,0.150099,86609.0,86608.0,0.01142638]
[1741476286664,0.138563,86603.0,86598.0,0.00034]
[1741476286864,0.011546,86604.0,86599.0,0.10952]
[1741476287070,0.011547,86600.0,86599.0,0.10952]
[1741476287939,0.011547,86601.0,86599.0,0.10952]
[1741476289432,0.138564,86602.0,86599.0,0.10952]
[1741476290887,0.01812052,86602.0,86599.0,0.10952]
[1741476291093,0.01812052,86602.0,86601.0,0.011547]
[1741476291471,0.01812052,86602.0,86601.0,0.02321108]
[1741476292523,0.01812052,86602.0,86601.0,0.14451108]
[1741476292718,0.10425231,86606.0,86605.0,0.011546]
[1741476292924,0.10425231,86606.0,86605.0,0.150106]
[1741476293144,0.10425231,86606.0,86605.0,0.1617607]
[1741476294742,0.10425231,86606.0,86605.0,0.2378607]
[1741476295171,0.0001699,86612.0,86605.0,0.2378607]
[1741476295346,0.0001699,86612.0,86611.0,0.150095]
[1741476295554,0.0001699,86612.0,86611.0,0.259615]
[1741476295752,0.0001699,86612.0,86611.0,0.27125563]
[1741476295975,0.01828901,86612.0,86611.0,0.27125563]
[1741476296652,0.01834251,86612.0,86611.0,0.27125563]
[1741476302886,0.0002234,86612.0,86611.0,0.27125563]
[1741476306282,0.01834246,86612.0,86611.0,0.27125563]
[1741476314611,0.15689046,86612.0,86611.0,0.12116063]
[1741476314808,0.16843546,86612.0,86611.0,0.01164063]
[1741476315329,0.011546,86609.0,86608.0,0.0003398]
[1741476315652,0.150099,86609.0,86608.0,0.0003398]
[1741476319783,0.48983985,86609.0,86608.0,0.0003398]
[1741476319970,0.78983985,86609.0,86608.0,0.0003398]
[1741476328943,0.79483985,86609.0,86608.0,0.0003398]
[1741476342177,0.71763985,86609.0,86608.0,0.0003398]
[1741476342967,0.66963985,86609.0,86608.0,0.0003398]
[1741476343919,0.305,86609.0,86608.0,0.0003398]
[1741476344740,0.443553,86609.0,86608.0,0.0003398]
[1741476344938,0.455099,86609.0,86608.0,0.0003398]
[1741476348098,0.450116,86599.0,86598.0,0.00034]
[1741476348307,0.150141,86585.0,86581.0,0.0787]
[1741476350799,0.150141,86585.0,86584.0,0.00334]
[1741476354309,0.3,86587.0,86584.0,0.00334]
[1741476354533,0.011549,86585.0,86584.0,0.00334]
[1741476355156,0.24799389,86587.0,86584.0,0.00334]
[1741476355359,0.24799389,86587.0,86584.0,0.00034]
[1741476355757,0.13859,86586.0,86584.0,0.00234]
[1741476356106,0.011549,86585.0,86584.0,0.00234]
[1741476357188,0.311549,86585.0,86584.0,0.00234]
[1741476357793,0.311549,86585.0,86584.0,0.00034]
[1741476358192,0.311549,86585.0,86584.0,0.00334]
[1741476358702,0.311549,86585.0,86584.0,0.00034]